bitfinex-derivatives/quotes_BTCF0:USTF0_20250320
["timestamp","ask_amount","ask_price","bid_price","bid_amount"]
[1742513593233,0.55458059,84122.0,84121.0,0.04007821]
[1742513593432,0.1189481,84119.0,84108.0,0.11412]
[1742513593632,0.1189524,84116.0,84111.0,0.0324]
[1742513593835,0.0594802,84111.0,84107.0,0.00874647]
[1742513594040,0.1189651,84107.0,84106.0,0.0324]
[1742513594538,0.1802651,84107.0,84106.0,0.0324]
[1742513595741,0.1802651,84107.0,84106.0,0.1513665]
[1742513596541,0.0613,84107.0,84106.0,0.1513665]
[1742513596735,0.1802651,84107.0,84106.0,0.1513665]
[1742513597134,0.1802651,84107.0,84106.0,0.1833665]
[1742513598932,0.1498651,84107.0,84106.0,0.1833665]
[1742513601843,0.1810651,84107.0,84106.0,1.6833665]
[1742513602242,0.3608,84122.0,84110.0,0.0594799]
[1742513602547,0.0323,84115.0,84114.0,0.1189552]
[1742513602736,0.0323,84115.0,84114.0,0.1513552]
[1742513603548,0.0313,84117.0,84116.0,0.1189524]
[1742513603954,0.0313,84117.0,84116.0,0.1514524]
[1742513604438,0.033,84122.0,84121.0,0.1189453]
[1742513604639,0.00017821,84130.0,84129.0,0.118934]
[1742513605242,0.00017821,84130.0,84129.0,1.651434]
[1742513605942,0.06857821,84130.0,84129.0,1.66347526]
[1742513606650,0.06857821,84130.0,84129.0,1.651434]
[1742513607348,0.00088001,84154.0,84129.0,2.43941118]
[1742513607650,0.0305,84148.0,84147.0,0.1189085]
[1742513607950,0.0305,84148.0,84147.0,0.12794999]
[1742513609237,0.0335,84148.0,84147.0,0.12794999]
[1742513609846,0.0335,84148.0,84146.0,0.3614]
[1742513610037,0.0333,84147.0,84146.0,0.4797099]
[1742513610446,0.0333,84147.0,84146.0,0.5124099]
[1742513611349,0.00017832,84156.0,84152.0,0.0594504]
[1742513611548,0.00017832,84156.0,84155.0,0.1188972]
[1742513611944,0.00017832,84156.0,84155.0,1.6188972]
[1742513613441,0.0909419,84165.0,84155.0,1.6188972]
[1742513613442,0.01214206,84170.0,84155.0,1.6188972]
[1742513613642,0.0594263,84187.0,84165.0,0.3608]
[1742513613852,0.1188534,84186.0,84185.0,0.3608]
[1742513614153,0.1146,84187.0,84165.0,0.36144]
[1742513614455,0.3608,84180.0,84168.0,0.0594392]
[1742513614649,0.118874,84172.0,84171.0,0.1188742]
[1742513615347,0.1834712,84174.0,84173.0,0.1188718]
[1742513615540,0.1834712,84174.0,84169.0,0.118917]
[1742513615541,0.1188756,84171.0,84169.0,0.118917]
[1742513615750,0.0935,84170.0,84169.0,0.118917]
[1742513616347,0.212376,84170.0,84169.0,0.118917]
[1742513616951,0.212376,84170.0,84169.0,4e-05]
[1742513617449,0.212376,84170.0,84169.0,0.1189174]
[1742513617649,0.212376,84170.0,84169.0,4e-05]
[1742513618849,0.1188774,84169.0,84168.0,0.00017821]
[1742513619061,0.1188774,84169.0,84168.0,0.00021821]
[1742513619252,0.1841774,84169.0,84168.0,0.00021821]
[1742513619949,0.1841774,84169.0,84168.0,0.00017821]
[1742513620959,0.1851774,84169.0,84168.0,0.00017821]
[1742513622358,0.1871774,84169.0,84168.0,0.00017821]
[1742513623859,0.19913125,84169.0,84168.0,0.00017821]
[1742513625062,0.1871774,84169.0,84168.0,0.00017821]
[1742513627455,0.19928617,84169.0,84168.0,0.00017821]
[1742513628056,0.1871774,84169.0,84168.0,0.00017821]
[1742513629064,0.19883365,84169.0,84168.0,0.00017821]
[1742513630168,0.19883365,84169.0,84167.0,4e-05]
[1742513630169,0.118893,84158.0,84148.0,0.3608]
[1742513630374,0.118893,84158.0,84150.0,0.1189043]
[1742513630674,0.213093,84158.0,84152.0,0.1189011]
[1742513631170,0.213093,84158.0,84155.0,4e-05]
[1742513631473,0.213093,84158.0,84157.0,0.3638]
[1742513632171,0.215093,84158.0,84157.0,0.3628]
[1742513633666,0.215093,84158.0,84157.0,0.3608]
[1742513636167,0.214093,84158.0,84157.0,0.4796944]
[1742513636372,0.214093,84158.0,84157.0,0.3608]
[1742513637873,0.214093,84158.0,84157.0,0.4796944]
[1742513639970,0.214093,84158.0,84157.0,0.3608]
[1742513640164,0.213093,84158.0,84157.0,0.4796944]
[1742513642173,0.20828,84158.0,84155.0,4e-05]
[1742513642376,0.118917,84141.0,84133.0,0.00893246]
[1742513642566,0.2159184,84140.0,84133.0,0.00893246]
[1742513642767,0.2159184,84140.0,84139.0,0.28544286]
[1742513643068,0.2159184,84140.0,84139.0,0.64624286]
[1742513643466,0.0661,84140.0,84139.0,0.4797198]
[1742513643676,0.11452,84147.0,84146.0,0.1189099]
[1742513643873,0.18052,84147.0,84146.0,0.4797099]
[1742513644371,0.18052,84147.0,84146.0,0.5753099]
[1742513644577,0.066,84147.0,84146.0,0.5753099]
[1742513644875,0.068,84147.0,84146.0,0.5753099]
[1742513645780,0.07,84147.0,84146.0,2.0753099]
[1742513646173,0.004,84147.0,84146.0,2.0753099]
[1742513650277,0.00017821,84148.0,84147.0,0.1189085]
[1742513650477,0.00017821,84148.0,84147.0,0.1803085]
[1742513651881,0.00117821,84148.0,84147.0,0.1803085]
[1742513652776,0.00217821,84148.0,84147.0,0.1803085]
[1742513653385,1e-08,84148.0,84147.0,0.1803085]
[1742513653581,1e-08,84148.0,84147.0,1.6803085]
[1742513655385,1e-08,84148.0,84147.0,0.1803085]
[1742513670699,0.0594561,84145.0,84131.0,0.78734113]
[1742513670891,0.1189198,84139.0,84135.0,0.1189249]
[1742513671093,0.24336529,84139.0,84132.0,0.0326]
[1742513671294,0.2335998,84139.0,84134.0,0.1189262]
[1742513671594,0.2335998,84139.0,84138.0,0.76441043]
[1742513671990,0.2335998,84139.0,84138.0,0.4797212]
[1742513673398,0.2335998,84139.0,84138.0,0.5102212]
[1742513673992,0.2974998,84139.0,84138.0,0.5102212]
[1742513678094,0.1828198,84139.0,84138.0,0.5102212]
[1742513678397,0.1783508,84153.0,84152.0,0.1783469]
[1742513678599,0.2928708,84153.0,84152.0,0.4202497]
[1742513679602,0.2928708,84153.0,84152.0,0.4507497]
[1742513680498,0.2928708,84153.0,84152.0,0.4817497]
[1742513682105,0.3567708,84153.0,84152.0,0.4817497]
[1742513684406,0.2422508,84153.0,84152.0,0.4817497]
[1742513690009,0.2422508,84153.0,84152.0,0.4507497]
[1742513690509,0.2422508,84153.0,84152.0,0.4810497]
[1742513691096,0.2422508,84153.0,84152.0,0.4216]
[1742513691294,0.2422508,84153.0,84152.0,0.3913]
[1742513691896,0.2422508,84153.0,84152.0,0.3608]
[1742513692698,0.1189099,84146.0,84145.0,0.3608]
[1742513692903,0.2333099,84146.0,84145.0,0.3608]
[1742513693102,0.2961099,84146.0,84145.0,0.3608]
[1742513694514,0.2961099,84146.0,84145.0,0.3921]
[1742513695314,0.3058413,84146.0,84145.0,0.3921]
[1742513696113,0.3058413,84146.0,84145.0,0.3608]
[1742513700418,0.3058413,84146.0,84145.0,0.3927]
[1742513700808,0.3058413,84146.0,84145.0,0.4552]
[1742513702519,0.3056413,84146.0,84145.0,0.4552]
[1742513702715,0.1914413,84146.0,84145.0,0.4552]
[1742513703122,0.3056413,84146.0,84145.0,0.4552]
[1742513705023,0.1614413,84146.0,84145.0,0.4552]
[1742513705323,0.2755613,84146.0,84145.0,0.4552]
[1742513706013,0.1517099,84146.0,84145.0,0.4552]
[1742513706211,0.98342651,84150.0,84148.0,0.0594535]
[1742513706416,1.1559187,84150.0,84149.0,0.1817057]
[1742513707320,1.0417987,84150.0,84149.0,0.1817057]
[1742513707823,1.0417987,84150.0,84149.0,0.0628]
[1742513708119,1.0417987,84150.0,84149.0,0.0309]
[1742513708326,1.1045987,84150.0,84149.0,0.0309]
[1742513708825,0.2411587,84150.0,84149.0,0.0309]
[1742513710821,0.2099587,84150.0,84149.0,0.0309]
[1742513711029,0.3241987,84150.0,84149.0,0.0631]
[1742513711621,0.2099587,84150.0,84149.0,0.0631]
[1742513711922,0.3242387,84150.0,84149.0,0.0631]
[1742513712729,0.3242387,84150.0,84149.0,0.1820057]
[1742513712730,0.2926387,84150.0,84149.0,0.1820057]
[1742513713225,0.1783509,84155.0,84154.0,0.1188972]
[1742513713421,0.1783509,84155.0,84154.0,0.3921]
[1742513713620,0.2114509,84155.0,84154.0,0.3921]
[1742513713826,0.2114509,84155.0,84154.0,0.40684671]
[1742513713827,0.2433509,84155.0,84154.0,0.40684671]
[1742513714827,0.1189057,84149.0,84148.0,4e-05]
[1742513715023,0.2339857,84149.0,84148.0,4e-05]
[1742513715226,0.2670857,84149.0,84148.0,4e-05]
[1742513715421,0.2670857,84149.0,84146.0,0.0313]
[1742513715422,0.1189085,84147.0,84146.0,0.0313]
[1742513715822,0.1497085,84147.0,84146.0,0.0313]
[1742513717326,0.1807085,84147.0,84146.0,0.0313]
[1742513720527,0.1189085,84147.0,84146.0,0.0313]
[1742513721225,0.1189085,84147.0,84146.0,0.1502099]
[1742513722331,0.2339085,84147.0,84146.0,0.1502099]
[1742513723626,0.2338285,84147.0,84146.0,0.1502099]
[1742513723931,0.1189085,84147.0,84146.0,0.1502099]
[1742513724428,0.1189069,84149.0,84148.0,0.0594535]
[1742513725324,0.1189069,84149.0,84148.0,0.074206]
[1742513725928,0.1189069,84149.0,84148.0,0.08928869]
[1742513726330,0.1189069,84149.0,84148.0,0.12138869]
[1742513726530,0.1189069,84149.0,84148.0,0.106306]
[1742513726732,0.1783508,84154.0,84153.0,0.1188986]
[1742513727022,0.0594493,84154.0,84153.0,2.0117986]
[1742513727235,0.0594493,84154.0,84153.0,2.0270093]
[1742513727432,0.0594493,84154.0,84153.0,2.04183707]
[1742513728229,0.0594493,84154.0,84153.0,2.02662637]
[1742513730535,0.0594493,84154.0,84153.0,0.52662637]
[1742513730732,0.1242493,84154.0,84153.0,0.52662637]
[1742513730933,0.0925493,84154.0,84153.0,0.52662637]
[1742513731741,0.0925493,84154.0,84153.0,0.5117986]
[1742513732233,0.0925493,84154.0,84153.0,0.5433986]
[1742513735543,0.0925493,84154.0,84153.0,0.5745986]
[1742513737638,0.1783247,84168.0,84167.0,0.05944]
[1742513739346,0.1504738,84172.0,84171.0,0.5424746]
[1742513741350,0.1836738,84172.0,84171.0,0.5424746]
[1742513742146,0.1836738,84172.0,84171.0,0.4236]
[1742513742350,0.1836738,84172.0,84171.0,0.0313]
[1742513742746,0.2983938,84172.0,84171.0,0.0313]
[1742513746638,0.2983938,84172.0,84170.0,4e-05]
[1742513746639,0.1188746,84171.0,84170.0,4e-05]
[1742513746847,0.1188831,84165.0,84164.0,0.0323]
[1742513747045,0.1188831,84165.0,84164.0,0.1511845]
[1742513747046,0.2336031,84165.0,84164.0,0.1511845]
[1742513747248,0.2977031,84165.0,84164.0,0.1828845]
[1742513747547,0.2977031,84165.0,84164.0,0.19765058]
[1742513748847,0.2977031,84165.0,84164.0,0.07876608]
[1742513750449,0.2977031,84165.0,84164.0,0.064]
[1742513751454,0.2977031,84165.0,84164.0,0.1828845]
[1742513752249,0.17882,84165.0,84164.0,0.1828845]
[1742513752449,0.2668031,84165.0,84164.0,0.1828845]
[1742513752657,0.1520831,84165.0,84164.0,0.1828845]
[1742513752851,0.1520831,84165.0,84164.0,1.69810842]
[1742513753252,0.1520831,84165.0,84164.0,1.71290117]
[1742513753648,0.0332,84165.0,84164.0,1.71290117]
[1742513754160,0.0594386,84171.0,84170.0,0.1188746]
[1742513754351,0.0594386,84171.0,84170.0,0.4796746]
[1742513754857,0.0594386,84171.0,84170.0,0.49446735]
[1742513755555,0.0917386,84171.0,84170.0,0.49446735]
[1742513756051,0.0917386,84171.0,84170.0,0.50433833]
[1742513756443,0.0917386,84171.0,84170.0,0.56883833]
[1742513756650,0.0917386,84171.0,84170.0,0.55896735]
[1742513757057,0.1239386,84171.0,84170.0,0.55896735]
[1742513757558,0.1239386,84171.0,84170.0,0.5441746]
[1742513758457,0.0323,84171.0,84170.0,0.55417475]
[1742513758657,0.1782986,84178.0,84177.0,0.059433]
[1742513758856,0.1782986,84178.0,84177.0,0.420233]
[1742513759058,0.2085986,84178.0,84177.0,0.420233]
[1742513759759,0.2085986,84178.0,84177.0,0.059433]
[1742513759949,0.2405986,84178.0,84177.0,0.059433]
[1742513761249,0.1464,84178.0,84177.0,0.059433]
[1742513761571,0.1464,84178.0,84177.0,0.420233]
[1742513762061,0.2652647,84178.0,84177.0,0.420233]
[1742513762261,0.1464,84178.0,84177.0,0.420233]
[1742513763653,0.032,84178.0,84177.0,0.420233]
[1742513764355,0.00017736,84180.0,84179.0,0.1188633]
[1742513764551,0.00017736,84180.0,84179.0,0.12787056]
[1742513766757,0.86432001,84191.0,84188.0,0.1188506]
[1742513766963,0.89462001,84191.0,84188.0,0.4796506]
[1742513767158,0.00044,84189.0,84188.0,0.4796506]
[1742513767752,0.0004,84189.0,84188.0,0.49439154]
[1742513767966,0.0004,84189.0,84188.0,0.50452572]
[1742513768467,0.0004,84189.0,84188.0,2.00452572]
[1742513768764,0.0004,84189.0,84188.0,1.98978478]
[1742513768960,0.0004,84189.0,84188.0,2.0048777]
[1742513769358,0.00044,84192.0,84188.0,1.88602077]
[1742513769659,0.00044,84192.0,84191.0,0.4796464]
[1742513769859,0.0004,84192.0,84191.0,0.4796464]
[1742513770059,0.11436,84198.0,84197.0,0.1188379]
[1742513770060,0.2926563,84198.0,84197.0,0.1188379]
[1742513770358,0.1738184,84198.0,84197.0,0.1188379]
[1742513770561,4e-05,84198.0,84197.0,0.1188379]
[1742513770761,4e-05,84202.0,84199.0,0.1188351]
[1742513770960,4e-05,84202.0,84201.0,0.1188323]
[1742513771764,0.0594147,84203.0,84202.0,0.118828]
[1742513771950,0.03144,84205.0,84202.0,0.118828]
[1742513772156,0.1188294,84203.0,84202.0,0.2376574]
[1742513772354,0.1188294,84203.0,84202.0,0.118828]
[1742513772564,0.1498294,84203.0,84202.0,0.118828]
[1742513772765,0.0303,84203.0,84202.0,0.118828]
[1742513772965,0.1491294,84203.0,84202.0,0.118828]
[1742513773168,0.0303,84203.0,84202.0,0.118828]
[1742513774963,0.00112001,84211.0,84202.0,0.11412]
[1742513775151,4e-05,84213.0,84212.0,0.1188167]
[1742513775567,4e-05,84213.0,84212.0,0.1499167]
[1742513775768,0.118811,84217.0,84216.0,0.0594054]
[1742513776067,0.0594041,84218.0,84214.0,0.1188129]
[1742513776068,0.1782617,84215.0,84214.0,0.1188129]
[1742513776273,4e-05,84215.0,84214.0,0.1499129]
[1742513776579,0.1188525,84215.0,84214.0,0.1813129]
[1742513777561,4e-05,84215.0,84214.0,0.1813129]
[1742513778669,0.1188062,84220.0,84219.0,0.1188069]
[1742513778969,0.1188062,84220.0,84219.0,0.4796069]
[1742513779268,0.0303,84221.0,84220.0,0.1188055]
[1742513779475,0.0303,84221.0,84220.0,0.1804055]
[1742513779662,0.0627,84221.0,84220.0,0.1804055]
[1742513780059,0.0303,84221.0,84220.0,0.1804055]
[1742513780462,4e-05,84223.0,84222.0,0.1188026]
[1742513780770,0.0004,84224.0,84223.0,0.1188012]
[1742513780962,0.0004,84224.0,84223.0,1.6817012]
[1742513780963,0.0638,84224.0,84223.0,1.6817012]
[1742513781267,0.0004,84224.0,84223.0,1.6817012]
[1742513781658,4e-05,84231.0,84225.0,0.0593992]
[1742513781970,4e-05,84231.0,84230.0,0.4795914]
[1742513782369,0.0634,84231.0,84230.0,0.4795914]
[1742513782667,0.1821899,84231.0,84230.0,0.3608]
[1742513782975,0.2965899,84231.0,84230.0,0.3608]
[1742513783470,0.2965899,84231.0,84230.0,0.3109]
[1742513785070,0.2965899,84231.0,84230.0,0.3733]
[1742513787070,0.2965899,84231.0,84230.0,0.3425]
[1742513788274,0.2965899,84231.0,84230.0,0.3109]
[1742513789360,0.2966299,84231.0,84230.0,0.3109]
[1742513801183,0.2642299,84231.0,84230.0,0.3109]
[1742513804378,0.2779299,84231.0,84230.0,0.3109]
[1742513804990,0.2642299,84231.0,84230.0,0.3109]
[1742513806184,0.1497899,84231.0,84230.0,0.3109]
[1742513806486,0.1497899,84231.0,84230.0,0.4296914]
[1742513806487,0.1187899,84231.0,84230.0,0.4296914]
[1742513806698,0.2328299,84231.0,84230.0,0.3109]
[1742513806903,0.2328299,84231.0,84230.0,0.1187914]
[1742513807104,0.2328299,84231.0,84230.0,0.1815914]
[1742513807701,0.2328299,84231.0,84230.0,0.0628]
[1742513809602,0.2653299,84231.0,84230.0,0.0628]
[1742513810200,0.3111299,84231.0,84230.0,0.0318]
[1742513811308,0.6719299,84231.0,84230.0,0.0318]
[1742513817212,0.118797,84226.0,84205.0,0.0594133]
[1742513817507,0.1188111,84216.0,84202.0,0.3608]
[1742513817700,0.1188294,84203.0,84202.0,0.3608]
[1742513817902,0.24332781,84203.0,84202.0,0.3608]
[1742513818204,0.27472781,84203.0,84202.0,0.3608]
[1742513819206,0.28832781,84203.0,84202.0,0.3608]
[1742513820311,0.2778694,84203.0,84202.0,0.3608]
[1742513820511,0.2642694,84203.0,84202.0,0.3608]
[1742513820908,0.1502294,84203.0,84202.0,0.4796309]
[1742513821099,0.2642694,84203.0,84202.0,0.5109309]
[1742513821503,0.2642694,84203.0,84202.0,0.3921]
[1742513822419,0.2642694,84203.0,84202.0,0.423]
[1742513824518,0.1502294,84203.0,84202.0,0.423]
[1742513824714,0.0322,84210.0,84208.0,0.118821]
[1742513824715,0.1188224,84209.0,84208.0,0.118821]
[1742513825017,0.1734505,84209.0,84208.0,0.1188224]
[1742513828019,0.0594098,84210.0,84208.0,0.1188224]
[1742513828020,4e-05,84210.0,84209.0,0.118821]
[1742513828209,0.11408,84210.0,84209.0,0.479621]
[1742513828713,0.11404,84210.0,84209.0,0.479621]
[1742513828916,0.2630596,84210.0,84209.0,0.479621]
[1742513829419,0.11404,84210.0,84209.0,0.479621]
[1742513831818,0.00021775,84211.0,84210.0,0.1188196]
[1742513835312,0.00021775,84211.0,84210.0,0.1503196]
[1742513836412,0.00021775,84211.0,84210.0,0.1806196]
[1742513839325,0.11903595,84211.0,84210.0,0.0618]
[1742513839629,0.11903595,84211.0,84210.0,0.1806196]
[1742513839820,0.18473595,84211.0,84210.0,0.1806196]
[1742513840725,0.15183595,84211.0,84210.0,0.1806196]
[1742513841114,0.15183595,84211.0,84210.0,0.0315]
[1742513841421,0.18413595,84211.0,84210.0,0.0315]
[1742513841613,0.21733595,84211.0,84210.0,0.0315]
[1742513843724,0.21733595,84211.0,84145.0,0.03668287]
[1742513843725,0.1188323,84201.0,84200.0,0.3608]
[1742513844025,0.24341126,84201.0,84200.0,0.3608]
[1742513844326,0.3273723,84201.0,84200.0,0.36084]
[1742513844828,0.3273723,84201.0,84200.0,0.3608]
[1742513845025,0.3273723,84201.0,84200.0,0.3618]
[1742513845225,0.3273723,84201.0,84200.0,0.4254]
[1742513845926,0.3273723,84201.0,84200.0,0.3929]
[1742513846323,0.33825537,84201.0,84200.0,0.3929]
[1742513847030,0.33825537,84201.0,84200.0,0.3919]
[1742513847819,0.3273723,84201.0,84200.0,0.3919]
[1742513849829,0.3273723,84201.0,84200.0,0.5107337]
[1742513851137,0.1513323,84201.0,84200.0,0.5432337]
[1742513851327,0.2653723,84201.0,84200.0,0.5432337]
[1742513851723,0.1188323,84201.0,84200.0,0.5432337]
[1742513852027,0.0317,84203.0,84202.0,0.1188309]
[1742513852231,0.1505294,84203.0,84202.0,0.1188309]
[1742513853236,4e-05,84204.0,84203.0,0.1188294]
[1742513853428,0.118868,84204.0,84203.0,0.1188294]
[1742513853735,0.118828,84204.0,84203.0,0.1188294]
[1742513854933,0.149628,84204.0,84203.0,0.1188294]
[1742513858833,0.0308,84204.0,84203.0,0.1188294]
[1742513859939,0.149628,84204.0,84203.0,0.1188294]
[1742513860637,0.1188323,84201.0,84200.0,0.5984658]
[1742513861036,0.1498323,84201.0,84200.0,0.5984658]
[1742513863039,0.1498323,84201.0,84200.0,0.5994658]
[1742513863639,0.031,84201.0,84200.0,2.0994658]
[1742513863840,0.03639956,84201.0,84200.0,2.0994658]
[1742513864036,0.15523186,84201.0,84200.0,2.0994658]
[1742513864233,0.15523186,84201.0,84200.0,2.0997858]
[1742513864537,0.03639956,84201.0,84200.0,2.0997858]
[1742513866339,0.03639956,84201.0,84200.0,2.1318858]
[1742513867743,0.031,84201.0,84200.0,2.1318858]
[1742513867943,0.031,84201.0,84200.0,2.1315658]
[1742513868144,0.03639956,84201.0,84200.0,2.1315658]
[1742513868339,0.00539956,84201.0,84200.0,2.1315658]
[1742513868543,0.00539956,84201.0,84200.0,2.1318858]
[1742513869443,0.03849956,84201.0,84200.0,2.1318858]
[1742513869648,0.15733186,84201.0,84200.0,2.1318858]
[1742513870941,0.12423186,84201.0,84200.0,2.1318858]
[1742513871643,0.00108001,84215.0,84214.0,0.1188139]
[1742513871848,0.0302,84217.0,84216.0,0.1188111]
[1742513872142,0.0302,84217.0,84216.0,0.19183604]
[1742513872349,0.0302,84217.0,84216.0,0.22183604]
[1742513876153,0.1490097,84217.0,84216.0,0.0303]
[1742513876546,0.1795097,84217.0,84216.0,0.1491111]
[1742513876939,0.1795097,84217.0,84216.0,0.0303]
[1742513877544,0.1188125,84215.0,84214.0,0.3608]
[1742513877954,0.1826125,84215.0,84214.0,0.3608]
[1742513878544,0.1826125,84215.0,84214.0,0.4796139]
[1742513878746,0.1826125,84215.0,84214.0,0.3926]
[1742513887154,0.118821,84209.0,84207.0,0.3608]
[1742513887351,0.118821,84209.0,84208.0,0.0306781]
[1742513887549,0.215621,84209.0,84208.0,0.0306781]
[1742513888158,0.215621,84209.0,84208.0,0.1495005]
[1742513888355,0.215621,84209.0,84208.0,0.1818005]
[1742513889055,0.215621,84209.0,84208.0,0.0629781]
[1742513890057,0.182521,84209.0,84208.0,0.0629781]
[1742513890355,0.150421,84209.0,84208.0,0.1818005]
[1742513891659,0.150421,84209.0,84208.0,0.0629781]
[1742513891863,0.183321,84209.0,84208.0,0.1818005]
[1742513892968,0.183321,84209.0,84208.0,0.0629781]
[1742513893558,0.183321,84209.0,84208.0,0.1818005]
[1742513894067,0.183321,84209.0,84208.0,0.0629781]
[1742513895167,0.183321,84209.0,84208.0,0.0306781]
[1742513895972,0.183321,84209.0,84208.0,0.0001781]
[1742513896274,0.1188309,84202.0,84201.0,0.00016]
[1742513896457,0.2328709,84202.0,84201.0,0.00016]
[1742513896658,0.3291709,84202.0,84201.0,0.00016]
[1742513897062,0.1188323,84201.0,84197.0,0.21346793]
[1742513897265,1.07314,84202.0,84192.0,0.2846239]
[1742513897266,0.1188436,84193.0,84192.0,0.2846239]
[1742513897466,0.1188506,84188.0,84186.0,0.35625259]
[1742513897766,0.1188506,84188.0,84170.0,0.118875]
[1742513897767,0.1188591,84182.0,84181.0,0.0323]
[1742513898267,0.1514591,84182.0,84181.0,0.0323]
[1742513898465,0.1514591,84182.0,84171.0,0.0321]
[1742513898466,0.1188605,84181.0,84171.0,0.0321]
[1742513898665,0.2329005,84181.0,84180.0,0.78830311]
[1742513898871,0.2644005,84181.0,84180.0,0.78830311]
[1742513899561,0.2644005,84181.0,84180.0,0.3608]
[1742513899760,0.2644005,84181.0,84180.0,0.3668]
[1742513900163,0.2974005,84181.0,84180.0,0.3668]
[1742513900765,0.1833605,84181.0,84180.0,0.4856619]
[1742513900972,0.2659005,84181.0,84180.0,0.4856619]
[1742513901158,0.2659005,84181.0,84180.0,0.5839619]
[1742513901468,0.2659005,84181.0,84180.0,0.5899619]
[1742513901669,0.2659005,84181.0,84180.0,0.4711]
[1742513902072,0.1518605,84181.0,84180.0,0.4711]
[1742513902261,0.2659005,84181.0,84180.0,0.4711]
[1742513902865,0.2659005,84181.0,84180.0,0.5899619]
[1742513904872,0.0594288,84183.0,84180.0,0.4711]
[1742513905065,0.0594288,84183.0,84180.0,0.6493893]
[1742513905066,0.1188605,84181.0,84180.0,0.6493893]
[1742513905266,0.1188605,84181.0,84180.0,0.4711]
[1742513905467,0.1188605,84181.0,84180.0,1.9711]
[1742513905670,0.1498605,84181.0,84180.0,1.9711]
[1742513907172,0.1498605,84181.0,84180.0,2.0899619]
[1742513907671,0.2639005,84181.0,84180.0,2.0899619]
[1742513908074,0.2639005,84181.0,84180.0,0.5899619]
[1742513911773,0.2639005,84181.0,84180.0,0.4711]
[1742513912968,0.2639005,84181.0,84180.0,0.5899619]
[1742513914266,0.2329005,84181.0,84180.0,0.5899619]
[1742513914473,0.0594288,84183.0,84182.0,0.1188591]
[1742513914670,0.2089818,84187.0,84186.0,0.1188534]
[1742513914976,0.1782818,84187.0,84186.0,0.1188534]
[1742513915578,0.1782818,84187.0,84186.0,0.1828534]
[1742513915975,0.1782818,84187.0,84186.0,0.1868534]
[1742513916665,0.1782818,84187.0,84186.0,0.1908534]
[1742513930278,0.1782818,84187.0,84186.0,0.0399]
[1742513930782,0.18911548,84187.0,84186.0,0.0399]
[1742513930985,0.25441548,84187.0,84186.0,0.0399]
[1742513932573,0.2435818,84187.0,84186.0,0.0399]
[1742513932774,0.2435818,84187.0,84186.0,0.1587534]
[1742513933679,0.0323,84187.0,84186.0,0.1587534]
[1742513933989,0.0323,84187.0,84186.0,0.1911534]
[1742513934783,0.0323,84187.0,84186.0,0.20222637]
[1742513936879,0.151152,84187.0,84186.0,0.20222637]
[1742513938783,0.0323,84187.0,84186.0,0.20222637]
[1742513940591,0.151152,84187.0,84186.0,0.20222637]
[1742513940782,0.0323,84187.0,84186.0,0.20222637]
[1742513941684,0.151152,84187.0,84186.0,0.20222637]
[1742513942580,0.184152,84187.0,84186.0,0.1911534]
[1742513947093,0.184152,84187.0,84186.0,0.1587534]
[1742513947291,0.214252,84187.0,84186.0,0.1587534]
[1742513947698,0.214252,84187.0,84186.0,0.1897534]
[1742513948381,0.184152,84187.0,84186.0,0.1897534]
[1742513949988,0.151152,84187.0,84186.0,0.1897534]
[1742513952800,0.0323,84187.0,84186.0,0.1897534]
[1742513952991,0.151152,84187.0,84186.0,0.1897534]
[1742513956700,0.0323,84187.0,84186.0,0.1897534]
[1742513956898,0.0596023,84190.0,84186.0,0.0709]
[1742513956899,0.0001781,84190.0,84186.0,0.0709]
[1742513957089,4e-05,84210.0,84186.0,0.3509]
[1742513957396,0.0312,84208.0,84207.0,0.1188238]
[1742513957697,0.0312,84208.0,84207.0,1.7116238]
[1742513958291,0.1500224,84208.0,84207.0,1.7116238]
[1742513959091,0.0312,84208.0,84207.0,1.72298639]
[1742513961302,4e-05,84210.0,84209.0,0.118821]
[1742513961802,4e-05,84210.0,84209.0,0.180321]
[1742513963192,0.2328262,84234.0,84233.0,0.1187871]
[1742513963399,0.1187857,84234.0,84233.0,0.4795871]
[1742513963594,0.1187857,84234.0,84233.0,0.3608]
[1742513963788,0.1505857,84234.0,84233.0,0.4795871]
[1742513964194,0.1505857,84234.0,84233.0,0.3608]
[1742513964395,0.1811857,84234.0,84233.0,0.3608]
[1742513969007,0.1811857,84234.0,84233.0,0.4795871]
[1742513969400,0.1811857,84234.0,84233.0,0.3608]
[1742513969708,0.1811857,84234.0,84233.0,0.5120871]
[1742513970006,0.1811857,84234.0,84233.0,0.5433871]
[1742513970405,0.1811857,84234.0,84233.0,0.4246]
[1742513970608,0.1811857,84234.0,84233.0,0.5433871]
[1742513971107,0.1811857,84234.0,84233.0,0.4246]
[1742513971810,0.1811857,84234.0,84233.0,0.5433871]
[1742513972197,0.1811857,84234.0,84233.0,0.3608]
[1742513973510,0.19222598,84234.0,84233.0,0.3608]
[1742513977307,0.0593967,84229.0,84226.0,0.0303]
[1742513977505,0.1501942,84228.0,84227.0,0.1781898]
[1742513977701,0.1501942,84228.0,84227.0,0.2707898]
[1742513978514,0.1501942,84228.0,84227.0,0.0617]
[1742513978810,0.1832942,84228.0,84227.0,0.1804956]
[1742513979202,0.1501942,84228.0,84227.0,0.1804956]
[1742513979399,4e-05,84230.0,84229.0,0.1187928]
[1742513979807,0.118788,84233.0,84232.0,0.0593942]
[1742513980003,0.114,84234.0,84233.0,0.1187871]
[1742513980211,0.2327857,84234.0,84233.0,0.1187871]
[1742513984516,0.1187871,84233.0,84232.0,0.3608]
[1742513985009,0.2125871,84233.0,84232.0,0.3608]
[1742513988324,0.22342905,84233.0,84232.0,0.3608]
[1742513990616,0.16052905,84233.0,84232.0,0.3608]
[1742513991018,0.19352905,84233.0,84232.0,0.3608]
[1742513999327,0.1187928,84229.0,84228.0,0.031]
[1742513999733,0.2113928,84229.0,84228.0,0.031]
[1742514002231,0.1489928,84229.0,84228.0,0.031]
[1742514002625,0.1489928,84229.0,84228.0,0.0642]
[1742514003023,0.1187928,84229.0,84228.0,0.1829942]
[1742514003220,0.1187928,84229.0,84228.0,0.0642]
[1742514003728,0.1187928,84229.0,84228.0,1.5642]
[1742514004932,0.1492928,84229.0,84228.0,1.5642]
[1742514005332,0.1187928,84229.0,84228.0,1.5642]
[1742514006133,0.1187928,84229.0,84228.0,0.0642]
[1742514007436,0.1488928,84229.0,84228.0,0.0642]
[1742514007633,0.1803928,84229.0,84228.0,0.0642]
[1742514014635,0.1803928,84229.0,84228.0,0.031]
[1742514014838,0.1803928,84229.0,84207.0,0.3608]